[Event "13th All African Mixed Team Rapid-ch 202"]
[Site "Accra"]
[Date "2024.03.09"]
[Round "6.14"]
[White "Benson, Maud"]
[Black "Shaba, Linda Dalitso"]
[Result "1-0"]
[ECO "A85"]
[WhiteElo "1664"]
[BlackElo "1836"]
[Annotator "NA RC"]
[PlyCount "91"]
[EventDate "2024.03.07"]
[EventType "rapid"]
[EventCountry "GHA"]
[SourceTitle "playchess.com"]
[Source "ChessBase"]
[SourceQuality "1"]
[TimeControl "900+10"]

1. d4 {[%emt 0:00:02]} e6 {[%emt 0:00:03]} 2. c4 {[%emt 0:00:02]} f5 {[%emt 0:00:02]} 3. Nc3 {[%emt 0:00:10]} Nf6 {[%emt 0:00:02]} 4. Qc2 {[%emt 0:00:33]} d5 {[%emt 0:00:25]} 5. e3 {[%emt 0:00:04]} Be7 {[%emt 0:00:11]} 6. Nf3 {[%emt 0:00:02]} c6 {[%emt 0:00:24]} 7. Bd3 {[%emt 0:00:04]} O-O {[%emt 0:00:07]} 8. O-O {[%emt 0:00:02]} Ne4 {[%emt 0:00:10]} 9. Ne5 {[%emt 0:00:29]} Nd7 {[%emt 0:00:17]} 10. Nxd7 {[%emt 0:00:32]} Bxd7 {[%emt 0:00:32]} 11. f3 {[%emt 0:15:00]} Nxc3 {[%emt 0:00:08]} 12. bxc3 {[%emt 0:00:00]} Qc7 {[%emt 0:00:31]} 13. f4 {[%emt 0:00:00]} b6 {[%emt 0:01:52]} 14. Bd2 {[%emt 0:00:00]} Rac8 {[%emt 0:00:09]} 15. Rac1 {[%emt 0:00:00]} Kh8 {[%emt 0:00:31]} 16. Rf3 {[%emt 0:00:00]} Rf6 {[%emt 0:00:16]} 17. Rcf1 {[%emt 0:00:00]} Rh6 {[%emt 0:00:18]} 18. Bc1 {[%emt 0:00:00]} Rg8 {[%emt 0:00:16]} 19. Qe2 {[%emt 0:00:00]} g5 {[%emt 0:00:33]} 20. g3 {[%emt 0:00:00]} Be8 {[%emt 0:01:51]} 21. R3f2 {[%emt 0:00:00]} Bh5 {[%emt 0:00:10]} 22. Qc2 {[%emt 0:00:00]} Bg4 {[%emt 0:00:44]} 23. cxd5 {[%emt 0:00:00]} cxd5 {[%emt 0:00:08]} 24. c4 {[%emt 0:00:00]} Qd7 {[%emt 0:01:53]} 25. cxd5 {[%emt 0:00:00]} Qxd5 {[%emt 0:01:02]} 26. e4 {[%emt 0:00:00]} Qd7 {[%emt 0:01:29]} 27. Bb2 {[%emt 0:00:00]} Bf6 {[%emt 0:01:21]} 28. e5 {[%emt 0:00:00]} Be7 {[%emt 0:01:21]} 29. Qb3 {[%emt 0:00:00]} gxf4 {[%emt 0:00:41]} 30. Rxf4 {[%emt 0:00:00]} Bg5 {[%emt 0:00:35]} 31. Rxg4 {[%emt 0:00:00]} fxg4 {[%emt 0:01:15]} 32. d5 {[%emt 0:00:14]} Be3+ {[%emt 0:00:34]} 33. Kg2 {[%emt 0:00:13]} Qb7 {[%emt 0:00:06]} 34. Be4 {[%emt 0:00:44]} Bc5 {[%emt 0:00:32]} 35. Rf6 {[%emt 0:00:39]} Kg7 {[%emt 0:00:17]} 36. Qd3 {[%emt 0:01:28]} Rd8 {[%emt 0:00:10]} 37. d6 {[%emt 0:00:13]} Qd7 {[%emt 0:00:07]} 38. Qe2 {[%emt 0:00:19]} Rxf6 {[%emt 0:00:11]} 39. exf6+ {[%emt 0:00:02]} Kf7 {[%emt 0:00:03]} 40. Be5 {[%emt 0:00:04]} Bxd6 {[%emt 0:00:04]} 41. Bc3 {[%emt 0:00:38]} h5 {[%emt 0:00:22]} 42. Qe3 {[%emt 0:00:10]} e5 {[%emt 0:00:10]} 43. Qh6 {[%emt 0:00:06]} Qc7 {[%emt 0:00:11]} 44. Bd5+ {[%emt 0:00:04]} Ke8 {[%emt 0:00:03]} 45. f7+ {[%emt 0:00:09]} Kd7 {[%emt 0:00:01]} 46. Qe6# {[%emt 0:00:47]} 1-0

[Event "13th All African Mixed Team Rapid-ch 202"]
[Site "Accra"]
[Date "2024.03.09"]
[Round "6.15"]
[White "Fomevor, Cephas Clinton"]
[Black "Pereira, Sergio Murilo de Ara"]
[Result "1-0"]
[ECO "E35"]
[WhiteElo "1887"]
[BlackElo "2115"]
[Annotator "RC"]
[PlyCount "105"]
[EventDate "2024.03.07"]
[EventType "rapid"]
[EventCountry "GHA"]
[SourceTitle "playchess.com"]
[Source "ChessBase"]
[SourceQuality "1"]
[TimeControl "900+10"]

1. d4 {[%emt 0:00:03]} Nf6 {[%emt 0:00:06]} 2. c4 {[%emt 0:00:01]} e6 {[%emt 0:00:05]} 3. Nc3 {[%emt 0:00:04]} Bb4 {[%emt 0:00:19]} 4. Qc2 {[%emt 0:00:12]} d5 {[%emt 0:00:29]} 5. cxd5 {[%emt 0:00:11]} exd5 {[%emt 0:00:17]} 6. Bg5 {[%emt 0:00:24]} h6 {[%emt 0:00:22]} 7. Bxf6 {[%emt 0:00:46]} Qxf6 {[%emt 0:00:04]} 8. Nf3 {[%emt 0:00:03]} O-O {[%emt 0:01:58]} 9. e3 {[%emt 0:00:03]} Bg4 {[%emt 0:03:35]} 10. Be2 {[%emt 0:00:04]} c6 {[%emt 0:02:01]} 11. h3 {[%emt 0:01:00]} Bxf3 {[%emt 0:00:49]} 12. Bxf3 {[%emt 0:00:02]} Bd6 {[%emt 0:00:35]} 13. O-O {[%emt 0:00:38]} Nd7 {[%emt 0:00:52]} 14. a3 {[%emt 0:00:32]} Nb6 {[%emt 0:00:37]} 15. Be2 {[%emt 0:01:39]} Bc7 {[%emt 0:02:26]} 16. Rac1 {[%emt 0:01:09]} Qd6 {[%emt 0:00:42]} 17. g3 {[%emt 0:00:58]} a6 {[%emt 0:00:19]} 18. b4 {[%emt 0:00:23]} Rfe8 {[%emt 0:00:03]} 19. Bd3 {[%emt 0:02:07]} h5 {[%emt 0:00:40]} 20. Qe2 {[%emt 0:05:42]} h4 {[%emt 0:01:08]} 21. f4 {[%emt 0:01:14]} Qe6 {[%emt 0:00:29]} 22. Rce1 {[%emt 0:00:46]} Qxh3 {[%emt 0:00:17]} 23. Qg2 {[%emt 0:00:20]} Qxg3 {[%emt 0:00:20]} 24. Qxg3 {[%emt 0:00:07]} hxg3 {[%emt 0:00:01]} 25. Kg2 {[%emt 0:00:05]} Re7 {[%emt 0:00:12]} 26. Kxg3 {[%emt 0:00:11]} Rae8 {[%emt 0:00:01]} 27. Kf3 {[%emt 0:00:07]} Nd7 {[%emt 0:00:07]} 28. Rh1 {[%emt 0:00:11]} Nf6 {[%emt 0:00:06]} 29. Nd1 {[%emt 0:00:08]} Ne4 {[%emt 0:00:12]} 30. Bxe4 {[%emt 0:00:09]} Rxe4 {[%emt 0:00:04]} 31. Rh4 {[%emt 0:00:17]} Bd8 {[%emt 0:00:31]} 32. Rh5 {[%emt 0:00:13]} g6 {[%emt 0:00:07]} 33. Rh6 {[%emt 0:00:25]} Bf6 {[%emt 0:00:03]} 34. Nc3 {[%emt 0:00:12]} Rxd4 {[%emt 0:00:09]} 35. f5 {[%emt 0:00:16]} Bg5 {[%emt 0:00:17]} 36. Rhh1 {[%emt 0:00:13]} Rd3 {[%emt 0:00:03]} 37. Nd1 {[%emt 0:00:01]} Rxa3 {[%emt 0:00:10]} 38. fxg6 {[%emt 0:00:34]} f6 {[%emt 0:00:04]} 39. Rh7 {[%emt 0:00:00]} d4 {[%emt 0:00:28]} 40. Reh1 {[%emt 0:00:00]} dxe3 {[%emt 0:00:11]} 41. Rh8+ {[%emt 0:00:00]} Kg7 {[%emt 0:00:06]} 42. Rxe8 {[%emt 0:00:00]} Rb3 {[%emt 0:00:31]} 43. Re7+ {[%emt 0:00:02]} Kxg6 {[%emt 0:00:02]} 44. Rxb7 {[%emt 0:00:05]} Rd3 {[%emt 0:00:07]} 45. Re1 {[%emt 0:00:44]} f5 {[%emt 0:00:09]} 46. Rb6 {[%emt 0:00:01]} f4 {[%emt 0:00:09]} 47. Rxc6+ {[%emt 0:00:06]} Kf5 {[%emt 0:00:02]} 48. Rxa6 {[%emt 0:00:15]} Rd2 {[%emt 0:00:08]} 49. Ra5+ {[%emt 0:00:08]} Kf6 {[%emt 0:00:01]} 50. Kg4 {[%emt 0:00:26]} e2 {[%emt 0:00:21]} 51. Rf5+ {[%emt 0:00:06]} Ke6 {[%emt 0:00:04]} 52. Nc3 {[%emt 0:00:13]} Bf6 {[%emt 0:00:08]} 53. Rxe2+ {[%emt 0:00:00]} 1-0

[Event "13th All African Mixed Team Rapid-ch 202"]
[Site "Accra"]
[Date "2024.03.09"]
[Round "6.17"]
[White "Oluka Robert Mcligeyo"]
[Black "Pedro Manuel Envo Engonga Avom"]
[Result "1/2-1/2"]
[ECO "C71"]
[WhiteElo "2041"]
[BlackElo "1702"]
[Annotator "RC"]
[PlyCount "135"]
[EventDate "2024.03.07"]
[EventType "rapid"]
[EventCountry "GHA"]
[SourceTitle "playchess.com"]
[Source "ChessBase"]
[SourceQuality "1"]
[TimeControl "900+10"]

1. e4 {[%emt 0:00:15]} e5 {[%emt 0:03:09]} 2. Nf3 {[%emt 0:00:06]} Nc6 {[%emt 0:00:01]} 3. Bb5 {[%emt 0:00:02]} a6 {[%emt 0:00:00]} 4. Ba4 {[%emt 0:00:01]} d6 {[%emt 0:00:01]} 5. d4 {[%emt 0:00:02]} b5 {[%emt 0:00:03]} 6. Bb3 {[%emt 0:00:06]} exd4 {[%emt 0:00:04]} 7. Nxd4 {[%emt 0:00:01]} Nxd4 {[%emt 0:00:01]} 8. Qxd4 {[%emt 0:00:03]} c5 {[%emt 0:00:01]} 9. Qd5 {[%emt 0:01:04]} Be6 {[%emt 0:00:01]} 10. Qc6+ {[%emt 0:00:01]} Bd7 {[%emt 0:00:01]} 11. Qd5 {[%emt 0:00:01]} c4 {[%emt 0:00:01]} 12. Bxc4 {[%emt 0:00:01]} bxc4 {[%emt 0:00:02]} 13. Qxc4 {[%emt 0:00:01]} Nf6 {[%emt 0:00:16]} 14. Nc3 {[%emt 0:00:03]} Qc8 {[%emt 0:01:59]} 15. Qd3 {[%emt 0:00:10]} Be7 {[%emt 0:00:40]} 16. O-O {[%emt 0:00:04]} O-O {[%emt 0:00:02]} 17. Bg5 {[%emt 0:00:06]} Re8 {[%emt 0:00:21]} 18. Rad1 {[%emt 0:00:25]} Be6 {[%emt 0:00:05]} 19. Rfe1 {[%emt 0:00:44]} Rd8 {[%emt 0:01:43]} 20. h3 {[%emt 0:00:37]} Qc5 {[%emt 0:00:55]} 21. Be3 {[%emt 0:00:26]} Qc4 {[%emt 0:00:26]} 22. Qxc4 {[%emt 0:00:17]} Bxc4 {[%emt 0:00:04]} 23. Rd4 {[%emt 0:00:06]} Rac8 {[%emt 0:00:36]} 24. Red1 {[%emt 0:00:10]} Ne8 {[%emt 0:01:33]} 25. Bf4 {[%emt 0:01:24]} Bf6 {[%emt 0:00:54]} 26. e5 {[%emt 0:00:08]} dxe5 {[%emt 0:00:09]} 27. Rxd8 {[%emt 0:00:03]} Rxd8 {[%emt 0:00:10]} 28. Rxd8 {[%emt 0:00:04]} Bxd8 {[%emt 0:00:02]} 29. Bxe5 {[%emt 0:00:03]} Bf6 {[%emt 0:00:19]} 30. Bxf6 {[%emt 0:00:09]} Nxf6 {[%emt 0:00:02]} 31. b3 {[%emt 0:00:04]} Nd5 {[%emt 0:00:59]} 32. Ne4 {[%emt 0:00:28]} Be2 {[%emt 0:00:16]} 33. a3 {[%emt 0:00:29]} Kf8 {[%emt 0:00:21]} 34. c4 {[%emt 0:00:19]} Nc7 {[%emt 0:00:22]} 35. Nc3 {[%emt 0:00:17]} Bd3 {[%emt 0:00:12]} 36. f3 {[%emt 0:00:35]} Ke7 {[%emt 0:00:39]} 37. Kf2 {[%emt 0:00:02]} Ke6 {[%emt 0:00:10]} 38. Ke3 {[%emt 0:00:03]} Bf1 {[%emt 0:00:25]} 39. Kf2 {[%emt 0:00:01]} Bd3 {[%emt 0:00:06]} 40. Ke3 {[%emt 0:00:01]} Bc2 {[%emt 0:00:01]} 41. b4 {[%emt 0:00:04]} Ke5 {[%emt 0:00:42]} 42. f4+ {[%emt 0:00:05]} Kf5 {[%emt 0:00:13]} 43. g4+ {[%emt 0:00:11]} Ke6 {[%emt 0:00:02]} 44. Kd4 {[%emt 0:00:16]} h6 {[%emt 0:01:17]} 45. a4 {[%emt 0:03:10]} f5 {[%emt 0:00:07]} 46. b5 {[%emt 0:00:12]} fxg4 {[%emt 0:00:29]} 47. hxg4 {[%emt 0:00:28]} Bxa4 {[%emt 0:02:09]} 48. b6 {[%emt 0:00:34]} Kd7 {[%emt 0:00:36]} 49. bxc7 {[%emt 0:00:09]} Bc6 {[%emt 0:00:05]} 50. Kc5 {[%emt 0:01:49]} Kxc7 {[%emt 0:00:16]} 51. g5 {[%emt 0:00:03]} h5 {[%emt 0:00:06]} 52. Ne2 {[%emt 0:00:30]} h4 {[%emt 0:00:13]} 53. f5 {[%emt 0:00:07]} Bd7 {[%emt 0:00:12]} 54. f6 {[%emt 0:00:27]} gxf6 {[%emt 0:00:02]} 55. gxf6 {[%emt 0:00:02]} Be8 {[%emt 0:00:39]} 56. Nf4 {[%emt 0:00:28]} Bf7 {[%emt 0:00:00]} 57. Nh3 {[%emt 0:00:42]} Be8 {[%emt 0:00:08]} 58. Ng5 {[%emt 0:00:09]} a5 {[%emt 0:00:06]} 59. Kd4 {[%emt 0:00:21]} Kc6 {[%emt 0:00:08]} 60. f7 {[%emt 0:00:17]} Bxf7 {[%emt 0:00:02]} 61. Nxf7 {[%emt 0:00:01]} h3 {[%emt 0:00:03]} 62. Ne5+ {[%emt 0:00:01]} Kd6 {[%emt 0:00:05]} 63. c5+ {[%emt 0:00:09]} Ke6 {[%emt 0:00:06]} 64. Nf3 {[%emt 0:00:03]} Kd7 {[%emt 0:00:13]} 65. Kc4 {[%emt 0:00:05]} Kc6 {[%emt 0:00:09]} 66. Nd4+ {[%emt 0:00:19]} Kc7 {[%emt 0:00:04]} 67. Nf3 {[%emt 0:00:12]} Kc6 {[%emt 0:00:14]} 68. Ne5+ {[%emt 0:00:41]} 1/2-1/2